Workbook

Sheet P&G's
A1: Contract JW14466R : Olifantsvlei WWTW Infrastructure Renewal Plan Volume 1 Tender and Contract Pricing Data
A2: Payment refers to | B2: Item No. | C2: Description | D2: Unit | E2: Quantity | F2: Rate | G2: Amount
B4: 1 | C4: PRELIMINARY AND GENERAL
A6: SABS | B6: 1.1 | C6: GENERAL (SMALL WORKS)
A7: 1200 AA
A8: 8.3 | C8: Scheduled fixed-charge and value-
C9: related items:
A10: 8.3.1 | B10: 1.1.1 | C10: Contractual requirements | D10: Sum | E10: 1
A12: 8.3.2 | C12: Provision of facilities on Site:
B14: 1.1.2 | C14: (a) Facilities required by Engineer, as described | D14: Sum | E14: 1
C15: in project specification PSAB
B17: 1.1.3 | C17: (b) Facilities required by Contractor | D17: Sum | E17: 1
C18: Nameboards as per Drawing No.
C19: BW1400-RHD-C1-11-D-C-1101 | D19: No | E19: 2
A21: 8.3.3 | C21: General responsibilities and other
B22: 1.1.4 | C22: fixed-charge obligations | D22: Sum | E22: 1
A24: 8.3.4 | B24: 1.1.5 | C24: Removal of Site establishment | D24: Sum | E24: 1
A26: 8.4 | C26: Scheduled time-related items:
A28: 8.4.1 | B28: 1.1.6 | C28: Contractual requirements | D28: Rate/
D29: month | E29: 18
A30: 8.4.2 | C30: Operation and maintenance of
C31: facilities on Site:
B33: 1.1.7 | C33: (a) Facilities for Engineer | D33: Rate/
D34: month | E34: 18
B35: 1.1.8 | C35: (b) Facilities for Contractor | D35: Rate/
D36: month | E36: 18
A37: 8.4.3 | B37: 1.1.9 | C37: General responsibilities and other time-
C38: related obligations | D38: Rate/
D39: month | E39: 18
A40: PSAA 8.5 | C40: Provisional sums, prime cost items,
C41: daywork and temporary works
A43: PSAA 8.5.1 | C43: Temporary Works Dealing with Water
C44: on the Works (Incl. flow accomodation)
B46: 1.1.10 | C46: a) General flow accomodation (flow diversion,
C47: creating a dry environment for construction work). | D47: Sum | E47: 1
B49: 1.1.11 | C49: b) Draining and waterjetting/cleaning flooded,
C50: existing pump station and influent channels. | D50: Sum | E50: 1
B52: 1.1.12 | C52: c) Draining of existing Van Wyksrust rising
C53: mains and disposal. | D53: Sum | E53: 1
B55: 1.1.13 | C55: d) Subsoil drainage and/or other temporary | D55: Prov
C56: measures surrounding the pump station | D56: Sum | E56: 1 | F56: R 5,000,000.00 | G56: =E56*F56 -> R5,000,000.00
B58: 1.1.14 | C58: Percentage mark-up on provisional sum item 1.1.13 above | D58: %
A61: PSAA 8.5.2 | B61: 1.1.15 | C61: a) Daywork
C62: i) Unskilled labour | D62: Rate/hr | E62: 200
C64: ii) Skilled labour | D64: Rate/hr | E64: 200
B66: 1.1.16 | C66: b) Plant
C68: i) TLB | D68: Rate/hr | E68: 200
C71: Carried forward
C74: Brought forward
C77: ii) Mobile Crane (5t) | D77: Rate/hr | E77: 200
A79: PSAA 8.5.4 | B79: 1.1.17 | C79: Ground penetrating radar (GPR) survey at
C81: (i) all areas of construction (Contract 1) | D81: Prov
D82: Sum | E82: 1 | F82: R 150,000.00 | G82: =E82*F82 -> R150,000.00
C83: (ii) areas for future Contract 2 | D83: Prov
D84: Sum | E84: 1 | F84: R 100,000.00 | G84: =E84*F84 -> R100,000.00
C85: Percentage mark-up on provisional sum items above
D86: %
A88: PSAA 8.5.5 | B88: 1.1.18 | C88: Topographical survey
C90: (i) Rising mains (x3) | D90: Prov
D91: Sum | E91: 1 | F91: R 150,000.00 | G91: =E91*F91 -> R150,000.00
C92: (ii) Substation C and Van Wyksrust p/stn road | D92: Prov
D93: Sum | E93: 1 | F93: R 70,000.00 | G93: =E93*F93 -> R70,000.00
C94: (iii) Scope related to contract 2 | D94: Prov
D95: Sum | E95: 1 | F95: R 250,000.00 | G95: =E95*F95 -> R250,000.00
C96: Percentage mark-up on provisional sum items above
D97: %
B99: 1.1.19 | C99: Flow logging as directed. | D99: Prov | E99: 1 | F99: R 100,000.00 | G99: =E99*F99 -> R100,000.00
D100: Sum
B101: 1.1.20 | C101: Percentage mark-up on provisional sum item 1.1.19 above
D102: %
A104: PS 7 | B104: 1.2 | C104: Compliance with the Occupational Health
C105: and Safety Act and applicable regulations:
B107: 1.2.1 | C107: i. Provision of a Health and Safety Plan | D107: Sum | E107: 1
B109: 1.2.2 | C109: ii. Provision of Health and Safety file | D109: Sum | E109: 1
B111: 1.2.3 | C111: iii. Provision of construction supervisors | D111: Sum | E111: 1
B113: 1.2.4 | C113: iv. Provision of a safety officer (full-time) | D113: Sum | E113: 1
B115: 1.2.5 | C115: v. Health and Safety training | D115: Sum | E115: 1
B117: 1.2.6 | C117: vi. Provision of personal protective clothing and
C118: equipment (incl. for the Engineer, assistants and
C119: visitors) | D119: Sum | E119: 1
B121: 1.2.7 | C121: vii. Provision of safety fences, signs and
C122: barricades | D122: Sum | E122: 1
B124: 1.2.8 | C124: Medical assessment of all employees | D124: Sum | E124: 1
B126: 1.2.9 | C126: HIV/AIDS Awareness: Compliance with
C127: requirements of SANS 1921-6 | D127: Sum | E127: 1
B129: 1.2.10 | C129: Compliance with the Occupational Health and
C130: Safety Act, applicable regulations and any
C131: other costs not allowed for anywhere else. | D131: Sum | E131: 1
A133: PS 8 | B133: 1.3 | C133: Environmental management during
C134: construction
B136: 1.3.1 | C136: Environmental awareness campaign | D136: Sum | E136: 1
B138: 1.3.2 | C138: Water pollution control | D138: Sum | E138: 1
C141: Carried forward
C144: Brought forward
B147: 1.3.3 | C147: Compliance with relevant environmental legislation | D147: Sum | E147: 1
A149: PS 6.5 | B149: 1.3.4 | C149: Compulsory postponement of the issuing of the
C150: Certificate of Completion | D150: Rate/day | E150: 10
B152: 1.3.5 | C152: Address feedback (requirements) from authorities | D152: Prov
D153: Sum | E153: 1 | F153: R 4,350,000.00 | G153: =E153*F153 -> R4,350,000.00
B154: 1.3.6 | C154: Percentage mark-up on provisional sum item 1.3.5 above
D155: %
B157: 1.3.7 | C157: Environmental Control Officer (ECO) monitoring | D157: Prov | E157: 1 | F157: R 450,000.00 | G157: =E157*F157 -> R450,000.00
C158: and reporting. | D158: Sum
B160: 1.3.8 | C160: Percentage mark-up on provisional sum item 1.3.7 above
D161: %
A163: PSSC | B163: 1.4 | C163: SUB-CONTRACTORS
A164: PSSC 1 | B164: 1.4.1 | C164: Value of Sub-Contracted Works
C165: based on a minimum of 3% of Contract price
C166: (BoQ Sub-total A). | D166: Sum | E166: 1 | G166: Rate only
A168: PSSC 2 | B168: 1.4.2 | C168: Overhead, charges and profit fee for the Main
C169: Contractor to oversee sub-contracted works. | D169: %
A171: PSSC 3 | B171: 1.4.3 | C171: Fixed-charge items for the sub-contractors
C172: Contractual Requirements | D172: Sum | E172: 1
A174: PSSC 4 | B174: 1.4.4 | C174: Overhead, charges and profit for the Main
C175: Contractor to provide for fixed-charge items for the
C176: sub-contractors Contractual Requirements. | D176: %
A178: PSSC 5 | B178: 1.4.5 | C178: Time Related items for the sub-contractors
C179: Contractual Requirements | D179: Sum | E179: 1
A181: PSSC 6 | B181: 1.4.6 | C181: Overhead, charges and profit for the Main
C182: Contractor to provide for time related items for the
C183: sub-contractors Contractual Requirements | D183: %
A185: PSSC 7 | B185: 1.4.7 | C185: Training for SMMEs | D185: Prov | E185: 1 | F185: R 250,000.00 | G185: =E185*F185 -> R250,000.00
D186: Sum
A187: PSSC 8 | B187: 1.4.8 | C187: Overhead, charges and profit for the Main
C188: Contractor to provide for training for SMMEs | D188: %
A190: PSSC 9 | B190: 1.4.9 | C190: For Contractor to make direct payment on | D190: Prov | E190: 1 | F190: R 200,000.00 | G190: =E190*F190 -> R200,000.00
C191: behalf of SMME | D191: Sum
A193: PSSC 10 | B193: 1.4.10 | C193: Overhead, charges and profit for the Main
C194: Contractor to make direct payment on behalf
C195: of SMME | D195: %
B197: 1.5 | C197: Miscellaneous | D197: Prov
B198: 1.5.1 | C198: Community Liason Officer (CLO) | D198: Sum | E198: 1 | F198: R 250,000.00 | G198: =E198*F198 -> R250,000.00
B200: 1.5.2 | C200: Percentage mark-up on provisional sum item 1.5.1 above | D200: %
B203: 1.5.3 | C203: Temporary site security measures / risk | D203: Prov | E203: 1 | F203: R 3,000,000.00 | G203: =E203*F203 -> R3,000,000.00
C204: mitigation | D204: Sum
B206: 1.5.4 | C206: Percentage mark-up on provisional sum item 1.5.3 above | D206: %
C211: Carried forward
C214: Brought forward
B217: 1.5.5 | C217: Security Guards (refer to Scope of work, PS 6.1) | D217: Rate/m | E217: 18
B219: 1.5.6 | C219: Conduct investigations and assessment of
C220: damaged or missing existing infrastructure
C221: such as Manhole covers; etc | D221: Sum | E221: 1
B223: 1.5.7 | C223: Conduct Geotechnical investigations which
C224: includes tests deemed necesserary by | D224: Prov | E224: 1 | F224: R 350,000.00 | G224: =E224*F224 -> R350,000.00
C225: the Geotechnical Enginneer | D225: Sum
B227: 1.5.8 | C227: Percentage mark-up on provisional sum item above | D227: %
B229: 1.5.9 | C229: Forward Cover (add 10% of Total Value of | D229: Sum | E229: 1
C230: Imported Content) Equipment Schedule - Form T2.3.1
B232: 1.5.10 | C232: Standing time | D232: Rate/d | E232: 20
B234: 1.5.11 | C234: Conduct a concrete integrity test on the existing | D234: Prov | E234: 1 | F234: R 120,000.00 | G234: =E234*F234 -> R120,000.00
C235: Van Wyksrust pump station (drone 3D scan, etc). | D235: Sum
B237: 1.5.12 | C237: Percentage mark-up on provisional sum item above | D237: %
B239: 1.6 | C239: Socio-economic Development
A241: PSAA 8.5.3 | B241: 1.6.1 | C241: Accredited training programmes are targeted | D241: Prov | E241: 1 | F241: R 250,000.00 | G241: =E241*F241 -> R250,000.00
C242: which will provide the beneficiaries with significant | D242: Sum
C243: and recognized credit value
B245: 1.6.2 | C245: Percentage mark-up on provisional sum item above | D245: %
B247: 1.6.3 | C247: Corporate Social Responsibility programs aimed | D247: Prov | E247: 1 | F247: R 300,000.00 | G247: =E247*F247 -> R300,000.00
C248: at improving the livelihood of the community | D248: Sum
B250: 1.6.4 | C250: Percentage mark-up on provisional sum item above | D250: %
C281: TOTAL SECTION 1 CARRIED TO SUMMARY

Sheet Civils
A1: ='P&G''s'!A1:G1 -> Contract JW14466R : Olifantsvlei WWTW Infrastructure Renewal Plan Volume 1 Tender and Contract Pricing Data
A2: Payment refers to | B2: Item No. | C2: Description | D2: Unit | E2: Quantity | F2: Rate | G2: Amount
B4: 2 | C4: CIVILS
C6: VAN WYKSRUST PUMP STATION AND
C7: SUBSTATION C
A9: SABS | B9: 2.1 | C9: SITE CLEARANCE
A10: 1200 C
A11: 8.2.1 | B11: 2.1.1 | C11: Clear and grub as designated by the Engineer
C12: i. Van Wyksrust p/stn | D12: ha | E12: =0.42-E14 -> 0.42
C13: ii. Substation C | D13: ha | E13: 0.04
A15: 8.2.2 | C15: Remove and grub all trees and tree
C16: stumps regardless of girth (Prov.)
B18: 2.1.2 | C18: (a) Over 1,0 m and up to and including 2,0 m | D18: No | E18: 4
B20: 2.1.3 | C20: (b) Over 2,0 m and up to and including 3,0 m | D20: No | E20: 3
A22: 8.2.5 | B22: 2.1.4 | C22: Take down existing fences | D22: km | E22: 0.08
A24: 8.2.7 | B24: 2.1.5 | C24: Dismantle and remove pipelines, electricity
C25: transmission lines, cables, etc.
C27: i. existing small diameter (<DN100) HDPE | D27: m | E27: 100
C28: pipes (Provisional)
C30: ii. Existing DN700 steel pipe installed on existing
C31: concrete plinths traversing the wetland | D31: m | E31: 550
A33: 8.2.9 | B33: 2.1.6 | C33: Transport materials and debris to unspecified | D33: t.km | E33: 300
C34: site and dump
A36: PSC 8.2.10 | B36: 2.1.7 | C36: Remove topsoil to nominal depth of 150 mm
C37: and stockpile
C38: Van Wyksrust p/stn | D38: m3 | E38: =230-E40 -> 215
C40: Substation C | D40: m3 | E40: 15
A42: PSC 8.2.12 | B42: 2.1.8 | C42: Temporary fencing closures | D42: m | E42: 30
A44: PSC 8.2.14 | B44: 2.1.9 | C44: Demolish and remove structures/buildings
C45: and dismantle steelwork, etc
C47: i. Existing concrete skip slab | D47: m3 | E47: 15
C48: ii. Existing steel crawl beam (SWL 3T) | D48: No. | E48: 1
C49: iii. Existing splitter chamber brickwork | D49: m3 | E49: 10
C50: iv. Existing splitter chamber concrete lid | D50: m3 | E50: 5
C51: v. Existing disused chambers at Substation C | D51: m3 | E51: 10
C52: vi. Existing pump station staircase | D52: m3 | E52: 2
C53: vii. Existing apron at Substation C | D53: m3 | E53: 10
C54: viii. Existing pump station concrete roof slabs | D54: m3 | E54: 70
C55: ix. Existing pump station brick walls | D55: m² | E55: 280
C56: x. Existing pump station miscellaneous superstructure components | D56: m3 | E56: 10
C57: xi. Existing pump station pump plinths | D57: m3 | E57: 20
A59: PSC 8.2.15 | B59: 2.1.10 | C59: Demarcation fencing | D59: m | E59: 260
A61: PSC 8.2.16 | B61: 2.1.11 | C61: Childproof barrier | D61: m | E61: 260
A63: PSC 8.2.17 | B63: 2.1.12 | C63: Remove existing precast kerbing to approved | D63: m | E63: 200
C64: dump site
A66: PSC 8.2.18 | B66: 2.1.13 | C66: Remove existing concrete block paving | D66: m² | E66: 200
C70: Carried forward
C73: Brought forward
A76: SABS | B76: 2.2 | C76: EARTHWORKS (SMALL WORKS)
A77: 1200 DA
A78: PSDA 8.3.1 | C78: Excavation:
C79: (b) Excavate in all materials and use for
C80: embankment or backfill or dispose,
C81: as ordered (see Fig DA-1)
B83: 2.2.1 | C83: For backfill
C84: i. New bypass channel | D84: m³ | E84: 75
C85: ii. Splitter chamber extension | D85: m³ | E85: 55
C86: iii. Bypass manhole installation | D86: m³ | E86: 60
C87: iv. Sump extension | D87: m³ | E87: 25
C88: v. Screenings facility | D88: m³ | E88: 25
C89: vi. Generator bunded area and sump | D89: m³ | E89: 10
C90: vii. Guardhouse platform | D90: m³ | E90: 12
C91: viii. Perimeter walls; Van Wyksrust p/stn | D91: m³ | E91: 1965
C92: ix. Perimeter walls; Substation C | D92: m³ | E92: 590
B94: 2.2.2 | C94: For embankment (provisional)
C95: i. New bypass channel | D95: m³ | E95: 7
C96: ii. Splitter chamber extension | D96: m³ | E96: 6
C97: iii. Bypass manhole installation | D97: m³ | E97: 6
C98: iv. Sump extension | D98: m³ | E98: 3
C99: v. Screenings facility | D99: m³ | E99: 5
C100: vi. Generator bunded area and sump | D100: m³ | E100: 3
C101: vii. Guardhouse platform | D101: m³ | E101: 3
C102: viii. Perimeter walls | D102: m³ | E102: 50
B104: 2.2.3 | C104: For disposal
C105: i. New bypass channel | D105: m³ | E105: 60
C106: ii. Splitter chamber extension | D106: m³ | E106: 85
C107: iii. Bypass manhole installation | D107: m³ | E107: 50
C108: iv. Sump extension | D108: m³ | E108: 30
C109: v. Screenings facility | D109: m³ | E109: 175
C110: vi. Generator bunded area and sump | D110: m³ | E110: 35
C111: vii. Guardhouse platform | D111: m³ | E111: 35
C112: viii. Perimeter walls | D112: m³ | E112: 630
B114: 2.2.4 | C114: (c) Extra over for:
C116: i. Intermediate excavation | D116: m³ | E116: 280
C118: ii. Hard rock excavation | D118: m³ | E118: 150
A120: PSDA 8.3.2 | C120: Restricted excavation (see Fig DA-2):
B121: 2.2.5 | C121: Excavate for restricted foundations, footings and
C122: trenches in all materials and use for backfill or
C123: embankment or dispose
C125: i. Downstand/ground beams | D125: m³ | E125: 10
C127: ii. Generator slab sump | D127: m³ | E127: 1
B129: 2.2.6 | C129: (c) Extra over for:
C131: i. Intermediate excavation | D131: m³ | E131: 7
C133: ii. Hard rock excavation | D133: m³ | E133: 4
A135: PSDA 8.3.4 | B135: 2.2.7 | C135: Importing of materials from commercial
C136: sources :
C138: (a) For Embankment Construction | D138: m³ | E138: 250
C140: Carried forward
C143: Brought forward
C146: (b) For Backfilling around Structures
C148: i. G7 material compacted to 95% Mod. AASHTO
C149: New bypass channel | D149: m³ | E149: 17
C150: Splitter chamber extension | D150: m³ | E150: 28
C151: Bypass manhole installation | D151: m³ | E151: 12
C152: Sump extension | D152: m³ | E152: 6
C153: Screenings facility | D153: m³ | E153: 110
C154: Generator bunded area and sump | D154: m³ | E154: 25
C155: Guardhouse platform | D155: m³ | E155: 30
C157: ii. G8 material compacted to 90% Mod. AASHTO
C158: (Provisional) | D158: m³ | E158: 1500
C160: iii. C4 Quality stabilized base compacted to
C161: 97% Mod. AASHTO maximum density
C162: Perimeter walls | D162: m³ | E162: 360
C164: 150 mm foundation layer below all structures- Rip
C165: and recompact to 93% Mod AASTO Density | D165: m³ | E165: 165
A167: 8.3.6 | B167: 2.2.8 | C167: Topsoiling | D167: m² | E167: 1325
A169: 8.3.7 | B169: 2.2.9 | C169: Grassing or other vegetation cover | D169: m² | E169: =E167 -> 1325
A171: PSDA 8.3.9 | B171: 2.2.10 | C171: Additional compaction | D171: m³ | E171: 420
A173: PSDA 8.3.11 | B173: 2.2.11 | C173: Protection of structures: buildings | D173: Sum | E173: 1
A175: SABS | B175: 2.3 | C175: EARTHWORKS (PIPE TRENCHES)
A176: 1200 DB
A177: 8.3.1 | C177: Site clearance and(if specified) removal of
C178: topsoil:
B180: 2.3.1 | C180: (a) Clear vegetation and trees of girth
C181: up to 1,0 m | D181: m | E181: 65
B183: 2.3.2 | C183: (c) Remove topsoil up to 200 mm in depth | D183: m² | E183: 180
A185: PSDB 8.3.2 | C185: Excavation:
B187: 2.3.3 | C187: (a) Excavate in all materials for trenches,
C188: backfill, compact and dispose of surplus material
C190: (i) DN700 pipes (Provisional) | D190: m³ | E190: 350
C192: (ii) DN1200 bypass pipe | D192: m³ | E192: 500
B194: 2.3.4 | C194: (b) Extra over item (a) above for:
C196: (i) Intermediate excavation | D196: m³ | E196: 45
C198: (iii) Hand excavation and backfill only
C199: where ordered by the Engineer | D199: m³ | E199: 170
C201: (iv) Backfill stabilised with 5% cement
C202: where directed by the Engineer (for trenches
C203: across road surfaces) | D203: m³ | E203: 40
B205: 2.3.5 | C205: (c) Excavate and dispose of unsuitable
C206: material from trench bottom (provisional) | D206: m³ | E206: 45
C210: Carried forward
C213: Brought forward
A216: PSDB 8.3.3 | C216: Excavation ancillaries:
A218: PSDB | C218: Make up deficiency in backfill material
A219: 8.3.3.1
B220: 2.3.6 | C220: (c) By importation from commercial or
C221: off-site sources selected by the contractor | D221: m³ | E221: 220
A223: 8.3.4 | C223: Particular items:
C224: Short trench opposite structure or service (Prov.) | D224: m | E224: 400
A226: PSDB 8.3.5 | C226: Existing services that intersect or adjoin
C227: a pipe trench:
B229: 2.3.7 | C229: (a) Services that intersect a trench (angles
C230: between centre-lines in plan of 45 - 90°) | D230: No | E230: 10
B232: 2.3.8 | C232: (b) Services that adjoin a trench (parallel | D232: m | E232: 150
C233: to or at a angle between centre-lines
C234: in plan of less than 45°)
A236: SABS | B236: 2.4 | C236: CONCRETE (STRUCTURAL)
A237: 1200 GA
A238: 8.2 | C238: FORMWORK
A240: 8.2.1 | B240: 2.4.1 | C240: Rough:
C242: (i) Splitter box extension walls external faces | D242: m² | E242: 50
C243: (up to 150mm below FGL)
C245: (ii) Bypass channel walls | D245: m² | E245: 45
C246: external faces (up to 150mm below FGL)
C248: (iii) Sump tie-in walls external faces | D248: m² | E248: 20
C250: (iv) Perimeter walls foundation | D250: m | E250: 630
A252: 8.2.2 | B252: 2.4.2 | C252: Smooth:
C254: (i) Splitter box extension walls internal faces | D254: m² | E254: 40
C255: (from 150mm below FGL)
C257: (ii) Bypass channel walls | D257: m² | E257: 30
C258: internal faces (from 150mm below FGL)
C260: (iii) Sump tie-in walls external faces | D260: m² | E260: 15
C262: (iv) New pump station walls | D262: m² | E262: 585
A264: 8.2.3 | B264: 2.4.3 | C264: narrow width (less than 500mm wide):
C266: (i) Screenings facility, upstand beams (smooth finish) | D266: m | E266: 75
C268: (ii) Generator bunded area (smooth finish) | D268: m | E268: 45
C270: (iii) Trolly beam (smooth finish) | D270: m | E270: 70
C272: (iv) Guardhouse slab and stubs | D272: m | E272: 30
C274: (v) Splitter box extension floor | D274: m | E274: 24
C276: (vi) Sump extension floor | D276: m | E276: 5
C278: (vii) Screenings facility downstand beam | D278: m | E278: 35
C280: Carried forward
C283: Brought forward
C285: (viii) Bypass channel floor | D285: m | E285: 15
C287: (ix) Pump station roof | D287: m | E287: 70
A289: 8.2.4 | B289: 2.4.4 | C289: Box out holes/form voids:
C291: (a) Small, circular of diameter up to and
C292: including 0,35 m:
C294: (i) Up to 0,5 m deep (Prov.) | D294: No | E294: 3
C296: (b) Small, other than circular, of area up to
C297: and including 0,1 m²:
C299: (i) Up to 0,5 m deep (Prov.) | D299: No | E299: 3
C301: (c) Large, circular, of diameter over 0,35 m
C302: up to and including 0,7 m:
C304: (i) Up to 0,5 m deep | D304: No | E304: 8
C306: (d) Large, other than circular, of area over
C307: 0,1 m² and up and including to 0,5 m²:
C309: (i) Up to 0,5 m deep (Prov.) | D309: No | E309: 10
A311: 8.3 | B311: 2.4.5 | C311: REINFORCEMENT
A313: 8.3.1 | C313: (a) Mild steel | D313: t | E313: 5.0
... 286 more rows

Sheet E&I
A1: ='P&G''s'!A1:G1 -> Contract JW14466R : Olifantsvlei WWTW Infrastructure Renewal Plan Volume 1 Tender and Contract Pricing Data
A2: Payment refers to | B2: Item No. | C2: Description | D2: Unit | E2: Quantity | F2: Rate | G2: Amount
B4: 3 | C4: ELECTRICAL, CONTROL AND INSTRUMENTATION
C6: Schedule No 1
C7: MV System Upgrade
B9: 3.1 | C9: Manufacture, supply, off loading and
C10: installation of Van Wyks MV Reticulation - 12kV
C11: Metal-clad MV Switchgear Boards and RMU's
C12: 800A, 25kA. As detailed in the specifications
A14: E13.26 | C14: (a) Incomer circuit breaker | D14: No | E14: 2
A16: E13.26 | C16: (b) Feeder circuit breaker | D16: No | E16: 1
A18: E13.26 | C18: (c) Battery tripping unit, wired fully installed | D18: No | E18: 1
A20: E13.26 | C20: (d) 11kV 3-way Ring Main Unit | D20: No | E20: 1
B22: 3.2 | C22: MV Cable
C23: Supply and installation XLPE Type A copper
C24: conductor cables strapped to cable ladders.
C25: (trenches, sleeves and cable terminations
C26: measured elsewhere)
A28: E12.9 | C28: (a) 185 mm2 x 3 core | D28: m | E28: 1000
A30: E12.9 | C30: (b) 70 mm2 x 3 core | D30: m | E30: 190
A32: E12.9 | C32: (c) 120 mm² Kwena earthing conductor. | D32: m | E32: =E28 -> 1000
A34: E12.9 | C34: (d) 70 mm² Kwena earthing conductor. | D34: m | E34: =E30 -> 190
B36: 3.3 | C36: MV Cable Termination
C37: Supply and installation of MV cable termination
C38: XLPE Type A copper conductor cables
A40: E06.7.4 | C40: (a) 185 mm2 x 3 core | D40: No | E40: 2
A42: E06.7.4 | C42: (b) 70 mm2 x 3 core | D42: No | E42: 6
A44: E06.7.4 | C44: (c) 120 mm² Kwena earthing conductor. | D44: No | E44: =E40 -> 2
A46: E06.7.4 | C46: (d) 70 mm² Kwena earthing conductor. | D46: No | E46: =E42 -> 6
B48: 3.4 | C48: MV Cable Joint
C49: Supply and installation of MV cable joint
C50: XLPE Type A copper conductor cables
A52: E06.6.2 | C52: (a) 185 mm2 x 3 core | D52: No | E52: 3
A54: E06.6.2 | C54: (b) 70 mm2 x 3 core | D54: No | G54: Rate only
B56: 3.5 | C56: MV CABLE Installation Accessories
C58: (a) Trenching including backfill and compaction - | D58: Prov. | E58: 1 | F58: R 270,000.00 | G58: =E58*F58 -> R270,000.00
C59: 800X1000mm | D59: Sum
C61: (b) Percentage mark-up on item above | D61: %
A63: E06.4.14 | C63: (c) Cable protection tiles (762x500x50) | D63: ea | E63: 1100
A65: E06.4.17 | C65: (d) Cable route Markers | D65: ea | E65: 14
C67: Carried forward
C70: Brought forward
B72: 3.6 | C72: Overhead Line - 11kV Fox Conductor
C73: Substation C to Van Wyks Pump station
C74: Design, supply, handling, inspection,
C75: testing and delivery of the equipment to implement
C76: the overhead line and equipment earthing,
C77: including soil resistivity testing,
A79: E20.8 | C79: (a) Supply and deliver overhead line | D79: m | E79: 650
A81: E20.8 | C81: (b) Supply and deliver earthing system | D81: No | E81: 1
A83: E20.8 | C83: (c) Install, commission and test overhead line | D83: No | E83: 1
C85: Removal of existing equipment
B86: 3.7 | C86: (a) Remove existing RMU's & MV Switchegar and | D86: Prov. | E86: 1 | F86: R 25,000.00 | G86: =E86*F86 -> R25,000.00
C87: transport to designated store, 5km maximum. | D87: Sum
C89: (b) Percentage mark-up on item above | D89: %
B91: 3.8 | C91: (c) Remove existing MV cable | D91: Prov. | E91: 1 | F91: R 25,000.00 | G91: =E91*F91 -> R25,000.00
C92: and transport to designated store, 5km maximum | D92: Sum
C94: (d) Percentage mark-up on item above | D94: %
C96: Schedule No 2
C97: Van Wyks Pump Station Electrics
A98: E04.19 | B98: 3.9 | C98: MOTOR CONTROL CENTRE
C99: Manufacture, supply, off loading and
C100: installation of Van Wyks Pump Station MCC
C101: including PLC connections , VSDs, marshalling
C102: tier and commissioning as detailed in the
C103: specifications and drawings | D103: No | E103: 1
B105: 3.10 | C105: PLC PANEL
C106: Manufacture, supply, off loading and
C107: Pump Station PLC panel fully equipped including
C108: PLC hardware, power supplies, network switch
C109: fibre patch panel, terminals, trunking wiring etc,
C110: including commissioning as detailed in the
C111: specifications and drawings. | D111: No | E111: 1
A113: E16.10 | B113: 3.11 | C113: UPS
C114: Supply, off loading, installation and commissioning
C115: of 3kVA, 230V UPS, with battery back-up | D115: No | E115: 1
B117: 3.12 | C117: LV CABLE
C118: Supply and installation of PVC/SWA/PVC
C119: copper conductor cables strapped to cable ladders
A120: E05.9 | C120: (a) 185mm2 x 3 core | D120: m | E120: 220
A121: E05.9 | C121: (b) 120mm2 x 3 core | D121: m | G121: Rate only
A122: E05.9 | C122: (c) 95mm2 x 3 core | D122: m | E122: 240
A123: E05.9 | C123: (d) 16mm2 x 4 core | D123: m | E123: 80
A124: E05.9 | C124: (e) 4mm2 x 4 core | D124: m | E124: 30
A125: E05.9 | C125: (f) 2.5mm2 x 7 core | D125: m | E125: 1140
A126: E05.9 | C126: (g) 2.5mm2 x 4 core | D126: m | E126: 1670
A127: E05.9 | C127: (h) 2.5mm2 x 3 core | D127: m | E127: 50
A128: E05.9 | C128: (i) 1.5mm2 x 3 core | D128: m | E128: 180
A129: E05.9 | C129: (j) 6mm2 x 3 core surfix | D129: m | E129: 200
A130: E05.9 | C130: (k) 2.5mm2 x 3 core surfix | D130: m | E130: 400
A131: E05.10 | C131: (l) 95 mm² Kwena earthing conductor. | E131: 165
C135: Carried forward
C138: Brought forward
B141: 3.13 | C141: LV CABLE TERMINATION
C142: Supply and installation of PVC/SWA/PVC Exe
C143: corrosion guard cable glands (IP68) complete
C144: including conductor& earth termination, lugs,
C145: tapes, drilling etc
A147: E06.7 | C147: (a) 185mm2 x 3 core | D147: No | E147: 20
A148: E06.7 | C148: (b) 120mm2 x 3 core | D148: No | G148: Rate only
A149: E06.7 | C149: (c) 95mm2 x 3 core | D149: No | E149: 20
A150: E06.7 | C150: (d) 16mm2 x 4 core | D150: No | E150: 6
A151: E06.7 | C151: (e) 4mm2 x 4 core | D151: No | E151: 4
A152: E06.7 | C152: (f) 2.5mm2 x 7 core | D152: No | E152: 40
A153: E06.7 | C153: (g) 2.5mm2 x 4 core | D153: No | E153: 112
A154: E06.7 | C154: (h) 2.5mm2 x 3 core | D154: No | E154: 4
A155: E06.7 | C155: (i) 1.5mm2 x 3 core | D155: No | E155: 8
A156: E06.7 | C156: (j) 6mm2 x 3 core surfix | D156: No | E156: 14
A157: E06.7 | C157: (k) 2.5mm2 x 3 core surfix | D157: No | E157: 46
A158: E06.8 | C158: (l) 95 mm² Kwena earthing conductor. | D158: No | E158: 14
B160: 3.14 | C160: LOCAL ISOLATOR/ STOP/START STATIONS
A161: E03.6 | C161: (a) Supply and installation of Local Isolator Station,
C162: including isolator and Stop/Start buttons.<80A | D162: No | E162: 11
A164: E03.6 | C164: (b) Supply and installation of Local Isolator Station,
C165: including isolator and Stop/Start buttons.>80A | D165: No | E165: 4
A167: E03.6 | C167: (c) Screen & compactor forward/ reverse local isolator
C168: station IP65, complete with emergency stop push | D168: No | E168: 5
A170: E03.6 | C170: (d) 3CR12 support stands for the above items. | D170: No | E170: 20
B172: 3.15 | C172: HIGH MAST LIGHTING
A173: E21.10 | C173: (a) 30m High Mast Light, 6/8 luminaires to achieve | D173: No | E173: 2
C174: Lux level of 50.
C176: (b) Trenching including backfill and compaction - | D176: Prov. | E176: 1 | F176: R 8,500.00 | G176: =E176*F176 -> R8,500.00
C177: 500X500mm | D177: Sum
C179: (b) Percentage mark-up on item above | D179: %
B181: 3.16 | C181: DIESEL GENERATOR
C182: Manufacture, supply, off loading, installation and
C183: commissioning of a 500kVA, 400V diesel
C184: generator including all ancillary equipment
C185: to effect a complete installation
C186: As detailed in the specifications
A188: E14.14 | C188: (a) Supply and delivery 500kVA 400V Generator | D188: No | E188: 1
C189: Set, Incl. first fill of fuel, lubrication oil and filters
A191: E14.14 | C191: (b) Installation site testing and commissioning, | D191: No | E191: 1
C192: including 12 month maintenance contract
C194: (c) Generator plinth and fencing enclosure | D194: Sum | E194: 1
B196: 3.17 | C196: 630kVA TRANSFORMER
C197: Manufacture, supply, off loading, installation and
C198: commissioning of a 630kVA, 11kV/400V ONAN
C199: Dyn11 Transformer. Including all materials and
C200: ancillary equipment to effect a complete
C201: installation as detailed in the specifications
C203: Carried forward
C206: Brought forward
A210: E15.17 | C210: (a) Supply, delivery and off loading of 630kVA | D210: No | E210: 1
C211: transformer
A213: E15.17 | C213: (b) Installation site testing and commissioning | D213: No | E213: 1
B215: 3.18 | C215: JUNCTION BOXES
C216: PVC/SWA/PVC Exe 4 way ezee / fit junction
C217: box (IP68) complete including terminals,
C218: lugs, tapes, drilling etc
C219: (glands measured elsewhere). | D219: No | E219: 10
B221: 3.19 | C221: EARTHING & LIGHTNING PROTECTION
C222: Design, supply, installation and testing of
C223: electrical earthing and lighting protection system
C224: for the Van Wyks pump station
C225: As detailed in the specifications
A227: E11.16 | C227: (a) Earth resistivity tests | D227: No | E227: 1
A229: E11.16 | C229: (b) Design of earthing&lightning protection system | D229: No | E229: 1
A231: E11.16 | C231: (c) Supply and Installation of earthing & lightning | D231: No | E231: 1
C232: protection system
A234: E11.16 | C234: (d) Testing of earthing&lightning protection system | D234: No | E234: 1
C236: SMALL POWER & LIGHTING
B238: 3.20 | C238: PLAIN ENDED METALLIC GALVANISED BOSAL
C239: CONDUIT
C240: Supply and installation of conduit and boxes as
C241: specified for lighting, power and auxiliary outlets,
C242: including couplings, bushes, locknuts, bending,
C243: drawboxes and fixing,etc in accordance with
C244: metallic conduit and accessories
A246: E09.19 | C246: (a) 20 mm on surface of brickwork or concrete | D246: m | E246: 100
C247: galvanised
A249: E09.19 | C249: (b) 20 mm round boxes surface mounted | D249: No | E249: 25
C250: galvanised
A252: E09.19 | C252: (c) Galvanised box 100 x 50 x 50mm deep | D252: No | E252: 35
C253: galvanised boxes built into brick or concrete
A255: E09.19 | C255: (d) Galvanised box 100 x 100 x 50mm deep | D255: No | E255: 30
C256: galvanised boxes built into brick or concrete
B258: 3.21 | C258: LIGHT SWITCHES
C259: Supply, installation and connection of 16 Amp light
C260: switches in flush 50 x 100 x 50mm boxes,
C261: including white coloured cover plates.
A263: E09.19 | C263: (a) Single lever | D263: No | E263: 6
A265: E09.19 | C265: (b) Two lever | D265: No | E265: 4
A267: E09.19 | C267: (c) Single lever, in IP65 Weather- Proof Enclosure | D267: No | E267: 2
A269: E09.19 | C269: (d) Occpancy Sensor | D269: No | E269: 2
C271: Carried forward
C274: Brought forward
B277: 3.22 | C277: SWITCHED SOCKET OUTLET
C278: Supply, installation and connection of 16Amp
C279: switched socket outlets in 100 x 100 x 50mm
C280: boxes with white coloured cover plates
A282: E09.19 | C282: (a) 16A, 3-pin double SSO, with two type M wall | D282: No | E282: 6
C283: mounted
B285: 3.23 | C285: LIGHTING
C286: Supply, Installation and Commissioning of
C287: Luminaires
A289: E21.10 | C289: (a) 4ft 50W Vapour Proof LED (With Battery | D289: No | E289: 6
C290: backup)
A292: E21.10 | C292: (b) 4ft 50W Vapour Proof LED | D292: No | E292: 6
A294: E21.10 | C294: (c) 220W LED Flood lights | D294: No | E294: 6
... 168 more rows

Sheet Mech
A1: ='P&G''s'!A1:G1 -> Contract JW14466R : Olifantsvlei WWTW Infrastructure Renewal Plan Volume 1 Tender and Contract Pricing Data
A2: Payment refers to | B2: Item No. | C2: Description | D2: Unit | E2: Quantity | F2: Rate | G2: Amount
B4: 4 | C4: MECHANICAL
B6: 4.1 | C6: Replacement of Pumps
A8: M18.28 | B8: 4.1.1 | C8: Design, drawings, manufacture, supply, factory testing and storage of the Van Wyk pump station pumpsets (including motors) as specified. | D8: No | E8: 4
A10: M18.28 | B10: 4.1.2 | C10: Delivery to site, offloading and installation of the Van Wyk pump station pumpsets | D10: No | E10: 4
B12: 4.2 | C12: Pipework
C14: Design, drawings, manufacture, supply, testing testing and storage of pipework:
A16: M20.27 | B16: 4.2.1 | C16: VP-01 DN500 Bell mouth | D16: No | E16: 4
A18: M20.27 | B18: 4.2.2 | C18: VP-02 DN500 90 deg short radius bend | D18: No | E18: 8
A20: M20.27 | B20: 4.2.3 | C20: VP-03 DN500 Puddle pipe | D20: No | E20: 4
A22: M20.27 | B22: 4.2.4 | C22: VP-05 DN500 Dismantling joint | D22: No | E22: 8
A24: M20.27 | B24: 4.2.5 | C24: VP-06 DN450-DN500 Eccentric enlarger | D24: No | E24: 4
A26: M20.27 | B26: 4.2.6 | C26: VP-07 DN400-DN500 Eccentric enlarger | D26: No | E26: 4
A28: M20.27 | B28: 4.2.7 | C28: VP-09 DN500 Straight pipe | D28: No | E28: 1
A30: M20.27 | B30: 4.2.8 | C30: VP-10 DN500 90 deg medium radius bend | D30: No | E30: 2
A32: M20.27 | B32: 4.2.9 | C32: VP-11 DN500-DN600 Eccentric enlarger | D32: No | E32: 2
A34: M20.27 | B34: 4.2.10 | C34: VP-12 DN600 Straight pipe | D34: No | E34: 1
A36: M20.27 | B36: 4.2.11 | C36: VP-13 DN500 Straight pipe | D36: No | E36: 1
A38: M20.27 | B38: 4.2.12 | C38: VP-14 DN600 Swept tee | D38: No | E38: 2
A40: M20.27 | B40: 4.2.13 | C40: VP-15 DN600 Straight pipe | D40: No | E40: 1
A42: M20.27 | B42: 4.2.14 | C42: VP-16 DN600 Straight pipe | D42: No | E42: 1
A44: M20.27 | B44: 4.2.15 | C44: VP-17 DN500 Straight pipe | D44: No | E44: 1
A46: M20.27 | B46: 4.2.16 | C46: VP-18 DN600 Straight pipe | D46: No | E46: 1
A48: M20.27 | B48: 4.2.17 | C48: VP-19 DN600 90 deg short radius bend | D48: No | E48: 4
A50: M20.27 | B50: 4.2.18 | C50: VP-20 DN600 Straight pipe | D50: No | E50: 2
A52: M20.27 | B52: 4.2.19 | C52: Delivery to site, offloading and installation of the pipework (for items 4.2.1 to 4.2.18) | D52: Sum | E52: 1
B54: 4.2.20 | C54: Other pipework and supports as directed by Engineer | D54: Prov Sum | E54: 1 | G54: R500,000.00
B56: 4.2.21 | C56: Contractors markup on Provisional Sums 4.2.20 | D56: %
C63: Carried forward
C66: Brought forward
B69: 4.3 | C69: Valves
C70: Design, drawings, manufacture, supply, factory testing and and storage of valves:
A72: M20.21 | B72: 4.3.1 | C72: DN500 PN10 Knife gate valve | D72: No | E72: 8
A74: M20.21 | B74: 4.3.2 | C74: DN500 PN10 Swing check valve | D74: No | E74: 4
A76: M20.21 | B76: 4.3.3 | C76: DN600 PN10 Knife gate valve | D76: No | E76: 3
A78: M20.21 | B78: 4.3.4 | C78: DN700 PN10 Knife gate valve | D78: No | E78: 2
A80: M20.21 | B80: 4.3.5 | C80: DN350 PN10 Knife gate valve | D80: No | E80: 6
A82: M20.21 | B82: 4.3.6 | C82: DN200 PN06 Flanged Sewage Air release valve | D82: No | E82: 4
A84: M20.21 | B84: 4.3.7 | C84: DN200 PN10 Gate Valve | D84: No | E84: 4
C86: Delivery to site, offloading and installation of the valves
A88: M20.21 | B88: 4.3.8 | C88: DN500 PN10 Knife gate valve | D88: No | E88: 8
A90: M20.21 | B90: 4.3.9 | C90: DN500 PN10 Swing check valve | D90: No | E90: 4
A92: M20.21 | B92: 4.3.10 | C92: DN600 PN10 Knife gate valve | D92: No | E92: 3
A94: M20.21 | B94: 4.3.11 | C94: DN700 PN10 Knife gate valve | D94: No | E94: 2
A96: M20.21 | B96: 4.3.12 | C96: DN350 PN10 Knife gate valve | D96: No | E96: 6
A98: M20.21 | B98: 4.3.13 | C98: DN200 PN06 Flanged Sewage Air release valve | D98: No | E98: 4
A100: M20.21 | B100: 4.3.14 | C100: DN200 PN10 Gate Valve | D100: No | E100: 4
B102: 4.4 | C102: Screening equipment
C104: Primary screens / Trash racks
A105: M01.15 | B105: 4.4.1 | C105: Design, drawings, manufacture, supply, factory testing and and storage of the mechanical front raked primary screens. | D105: No | E105: 3
A107: M01.15 | B107: 4.4.2 | C107: Delivery to site, offloading and installation of mechanically front raked primary screens. | D107: No | E107: 3
A109: M01.15 | B109: 4.4.3 | C109: Design, drawings, manufacture, supply, factory testing and and storage of the primary screens belt conveyor. | D109: No | E109: 1
A111: M01.15 | B111: 4.4.4 | C111: Delivery to site, offloading and installation of the primary screens belt conveyor. | D111: No | E111: 1
C113: Secondary screens
A115: M01.15 | B115: 4.4.5 | C115: Design, drawings, manufacture, supply, factory testing and and storage of the mechanical front raked secondary screens. | D115: No | E115: 2
A117: M01.15 | B117: 4.4.6 | C117: Delivery to site, offloading and installation of mechanically front raked secondary screens. | D117: No | E117: 2
C120: Carried forward
C123: Brought forward
A126: M01.15 | B126: 4.4.7 | C126: Design, drawings, manufacture, supply, factory testing and and storage of the secondary screens screw conveyor. | D126: No | E126: 1
A128: M01.15 | B128: 4.4.8 | C128: Delivery to site, offloading and installation of the secondary screen screw conveyor. | D128: No | E128: 1
A130: M01.15 | B130: 4.4.9 | C130: Design, drawings, manufacture, supply, factory testing and and storage of the screenings wash compactor. | D130: No | E130: 2
A132: M01.15 | B132: 4.4.10 | C132: Delivery to site, offloading and installation of the screenings wash compactor. | D132: No | E132: 2
A134: M01.15 | B134: 4.4.11 | C134: Design, drawings, manufacture, supply, factory testing and storage of the compacted screenings belt conveyor. | D134: No | E134: 1
A136: M01.15 | B136: 4.4.12 | C136: Delivery to site, offloading and installation of the storage of the compacted screenings belt conveyor. | D136: No | E136: 1
A138: M01.15 | B138: 4.4.13 | C138: Design, drawings, manufacture, supply, and storage of the waste skip trolleys and tracks | D138: No | E138: 1
A140: M01.15 | B140: 4.4.14 | C140: Delivery to site, offloading and installation of the waste skip trolleys and tracks | D140: No | E140: 1
B142: 4.5 | C142: Wash water booster pumps
C144: Design, drawings, manufacture, supply, off loading and storage of the new wash water booster pumps, valves, pipework, including hold down bolts
A146: M18.28 | B146: 4.5.1 | C146: Wash water booster pump sets | D146: No | E146: 2
A148: M20.21 | B148: 4.5.2 | C148: DN65 - Isolation Valves | D148: No | E148: 2
A150: M20.21 | B150: 4.5.3 | C150: DN65 - Non-return valves | D150: No | E150: 2
A152: M21.27 | B152: 4.5.4 | C152: DN65 PN10 Stainless Steel flanged medium pressure pipe | D152: m | E152: 40
C154: Installation, site testing and commissioning of the new wash water booster pumps, valves, pipework, including hold down bolts
A156: M18.28 | B156: 4.5.5 | C156: Wash water booster pump sets | D156: Sum | E156: 1
A158: M21.27 | B158: 4.5.6 | C158: Pipework and valves | D158: Sum | E158: 1
B160: 4.6 | C160: Wash water supply pumps
C162: Design, drawings, manufacture, supply, off loading and storage of the new wash water supply pumps, valves, pipework, including hold down bolts
A164: M18.28 | B164: 4.6.1 | C164: Wash water supply pump sets | D164: No | E164: 2
C167: Carried forward
C170: Brought forward
A173: M20.21 | B173: 4.6.2 | C173: DN100 - Isolation valves | D173: No | E173: 2
A175: M20.21 | B175: 4.6.3 | C175: DN100 - Non-return valves | D175: No | E175: 2
A177: M21.27 | B177: 4.6.4 | C177: DN100 PN10 flanged medium pressure pipe discharge manifold | D177: m | E177: 5
B179: 4.6.5 | C179: 4750l HDPE wash water storage tank | D179: No | E179: 1
B181: 4.6.6 | C181: Skid mount for pumps | D181: No | E181: 1
C183: Installation, site testing and commissioning of the new wash water supply pumps, valves, pipework, including hold down bolts
A185: M18.28 | B185: 4.6.7 | C185: Wash water supply pump sets, skid and tank | D185: Sum | E185: 1
A187: M21.27 | B187: 4.6.8 | C187: Pipework and valves | D187: Sum | E187: 1
B189: 4.7 | C189: Penstocks
C191: Design, drawings, manufacture, supply, off loading and storage of penstocks
A193: M34.17 | B193: 4.7.1 | C193: 1m wide by 2m high channel mounted | D193: No | E193: 5
A195: M34.17 | B195: 4.7.2 | C195: 650mm wide by 650mm height wall mounted | D195: No | E195: 3
C197: Installation and commissioning of penstocks
A199: M34.17 | B199: 4.7.3 | C199: 1m wide by 2m high channel mounted | D199: No | E199: 5
A201: M34.17 | B201: 4.7.4 | C201: 650mm wide by 650mm height wall mounted | D201: No | E201: 3
B203: 4.8 | C203: Ancillaries
B204: 4.8.1 | C204: Supply of screen spares as directed by Engineer | D204: Prov Sum | E204: 1 | F204: R80,000.00 | G204: R80,000.00
B206: 4.8.2 | C206: Repairs to HVAC as directed by Engineer | D206: Prov Sum | E206: 1 | F206: R250,000.00 | G206: R250,000.00
B208: 4.8.3 | C208: Repairs to lifting equipment and load testing | D208: Prov Sum | E208: 1 | F208: R300,000.00 | G208: R300,000.00
B210: 4.8.4 | C210: Fabricated steel pipe supports, staircase and stepovers | D210: Prov Sum | E210: 1 | F210: R450,000.00 | G210: R450,000.00
B212: 4.8.5 | C212: Contractors markup on Provisional Sums 4.8.1, | D212: %
C213: 4.8.2, 4.8.3, 4.8.4
B215: 4.8.6 | C215: Design, drawings, manufacture, supply, off loading, installation and commissioning of drainage submersible pump installation | D215: No | E215: 1
C225: TOTAL SECTION 4 CARRIED TO SUMMARY

Sheet Camera
A1: ='P&G''s'!A1:G1 -> Contract JW14466R : Olifantsvlei WWTW Infrastructure Renewal Plan Volume 1 Tender and Contract Pricing Data
A2: Payment refers to | B2: Item No. | C2: Description | D2: Unit | E2: Quantity | F2: Rate | G2: Amount
B4: 5 | C4: SECURITY CAMERA SYSTEM
B6: 5.1 | C6: Cameras and poles
C7: (a) Galvanised 100 x 100mm tubing 5m | D7: No. | E7: 28
C8: (b) Earthing | D8: No. | E8: 28
C9: (c) Camera - 4MP Bullet 100m | D9: No. | E9: 28
C10: (d) Pole Bracket & Pole Cap | D10: No. | E10: 28
C11: (e) Camera Junction Box | D11: No. | E11: 28
C12: (f) Camera Network Switch | D12: No. | E12: 28
C13: (g) Power Supply | D13: No. | E13: 28
C14: (h) SFP MM | D14: No. | E14: 56
C15: (i) Battery - 12V 24Ah | D15: No. | E15: 28
C16: (j) Fibre Splice Box | D16: No. | E16: 28
C17: (k) Ethernet Patch Cables | D17: No. | E17: 28
C18: (l) Fibre Patch Cables | D18: No. | E18: 56
B20: 5.2 | C20: Video Recorder,Fibre Optic,Cable&Trenching
C21: (a) Digital video recorder 64 channel, 32G storage | D21: No. | E21: 2
C22: (b) DVR Switch | D22: No. | E22: 1
C23: (c) 4 Fibre Unit MM OM2 | D23: m | E23: 250
C24: (d) 4 core single mode fibre cable - aerial type | D24: m | E24: 350
C25: (e) 1 Way 8/5 Microduct | D25: m | E25: 250
C26: (f) 2.5mm x 3c Cable | D26: m | E26: 700
C27: (g) 2.5mm x 3c Cable ends | D27: No. | E27: 28
C28: (h) 4mm x 3c Cable | D28: m | E28: 700
C29: (i) 4mm x 3c Cable ends | D29: No. | E29: 28
C30: (j) FO Terminations | D30: No. | E30: 60
C31: (k) Pigtails | D31: No. | E31: 120
C32: (l) Cable Cover Slabs (38mm thick paving blocks or precast wall slabs) | D32: m | E32: 250
C33: (m) 110mm Cable Sleeve | D33: m | E33: 100
C34: (n) Trenching 500x500mm (W x D) - hand excavations | D34: m | E34: 250
C35: (o) Sifted Sand Bedding | D35: m3 | E35: 30
C36: (p) Cable warning tape | D36: m | E36: 250
C37: (q) Backfilling (insitu material) | D37: m3 | E37: 70
B39: 5.3 | C39: Power Links
C40: (a) Circuit Breakers in existing DB | D40: Sum | E40: 1
C41: (b) 25mm Galvanised Conduit | D41: m | E41: 20
C42: (c) 25mm Galvanised Saddles | D42: No. | E42: 20
B44: 5.4 | C44: Testing & Commissioing | D44: Sum | E44: 1
B46: 5.5 | C46: Associated Preliminary & General | D46: Sum | E46: 1
C67: TOTAL SECTION 5 CARRIED TO SUMMARY

Sheet Pipe Invest.
A1: ='P&G''s'!A1:G1 -> Contract JW14466R : Olifantsvlei WWTW Infrastructure Renewal Plan Volume 1 Tender and Contract Pricing Data
A2: Payment refers to | B2: Item No. | C2: Description | D2: Unit | E2: Quantity | F2: Rate | G2: Amount
A4: PSCP | B4: 6 | C4: PIPES INVESTIGATION, DESIGN, REPORT
C5: (Existing DN700's & DN1400 rising main pipes)
B7: 6.1 | C7: See items described below | D7: Prov.
D8: Sum | E8: 1 | F8: R2,400,000.00 | G8: =E8*F8 -> R2,400,000.00
B10: 6.2 | C10: Percentage mark-up on item above | D10: %
C12: Preliminary and General:
B14: 6.3 | C14: Allowance for compliance with all contractual requirements, including site establishment, transport, access to the site, equipment, security measures, insurances, all disbursements, overheads and any other costs not allowed for anywhere else.
B16: 6.4 | C16: GPR (Ground penetrating radar) Survey and mapping of the existing pipes and other related services
C18: Pipe condition inspection
B20: 6.5 | C20: The point of lowest soil resistivity is to be used to select a cut-out that requires testing. Crown of the pipe to be cut to provide a suitable size for metallurgical testing purposes (6 off). Opening to be made good upon completion of the investigation stage.
C22: CP and AC investigations
B24: 6.6 | C24: Inspection of the existing pipelines coatings
B26: 6.7 | C26: Excavation for inspection, as required.
C28: Soil Resistivity Survey:
B30: 6.8 | C30: Provide all necessary equipment for carrying out the soil resistivity survey
B32: 6.9 | C32: Provide technical site staff (say 85 off), take measurements, record the soil resistivity, taking and recording GPS coordinates
C34: Stray Current Survey:
B36: 6.10 | C36: Ascertain if there are any stray currents
B38: 6.11 | C38: Provide data loggers for stray current survey if required
B40: 6.12 | C40: Provide technical site staff, install and remove data loggers
C42: Current Drainage Survey:
B44: 6.13 | C44: Provide technical site staff and carry out current drainage survey on the existing pipelines
B46: 6.14 | C46: a. Install temporary continuity measures to enable the current drainage survey (as required)
C50: Carried forward
C53: Brought forward
B56: 6.15 | C56: Tabulate and analyse all field data
C58: Design and Report:
C60: Prepare an options analysis of feasible repair/replacement methods for the existing pipelines, including related costing and firm recommendations, based on tests and visual assessment.
B62: 6.16 | C62: Existing DN700 pipes (x2)
B64: 6.17 | C64: Existing DN1400 pipe (x1)
B66: 6.18 | C66: Carry out the design of the CP system(s) and AC mitigation measures.
B68: 6.19 | C68: Prepare an estimate of the capital cost of the CP system(s) and AC mitigation measures that will be required
B70: 6.20 | C70: Prepare an estimate of the operating costs of the CP system(s) and AC mitigation measures.
B72: 6.21 | C72: Preparation and submission of the report including and having addressed all objectives outlined throughout the documents.
C108: TOTAL SECTION 6 CARRIED TO SUMMARY

Sheet Roads paving slabs
A1: ='P&G''s'!A1:G1 -> Contract JW14466R : Olifantsvlei WWTW Infrastructure Renewal Plan Volume 1 Tender and Contract Pricing Data
A2: Payment refers to | B2: Item No. | C2: Description | D2: Unit | E2: Quantity | F2: Rate | G2: Amount
B4: 7 | C4: ROADS PAVING SLABS
B6: 7.1 | C6: MASS EARTHWORKS
A8: B33.04 | B8: 7.1.1 | C8: Cut to spoil, including all haul. Material
C9: obtained from:
C11: (a) Soft excavation | D11: m³ | E11: 200
C13: (b) Intermediate excavation | D13: m³ | E13: 100
C15: (c)Hard excavation | D15: m³ | E15: 10
C17: (d) Boulder excavation class A | D17: m³
C19: (e)Boulder excavation class B | D19: m³ | E19: 10
A21: B33.07 | B21: 7.1.2 | C21: Removal of unsuitable material, including all
C22: haul:
C24: (a) In layer thicknesses of 200 mm and less:
C26: i. Stable material | D26: m³ | E26: 200
C28: ii. Unstable material | D28: m³ | E28: 100
C30: (b) In layer thicknesses exceeding 200 mm:
C32: i. Stable material | D32: m³ | E32: 10
A34: 33.10 | B34: 7.1.3 | C34: Roadbed preparation and the compaction of | G34: =E34*F34 -> 0
C35: material: | G35: 0
G36: 0
C37: (b) Compaction to 93% of modified AASHTO | G37: 0
C38: density | D38: m³ | E38: 300
C40: (d) Compaction of sand roadbed to 100% of
C41: modified AASHTO density | D41: m³ | E41: 10
A43: B33.20 | B43: 7.1.4 | C43: Fill constructed with material obtained from
C44: commercial sources or sources provided by
C45: the contractor, including all haul:
C47: Gravel material in compacted layer
C48: thicknesses of 200 mm and less:
C50: Compacted to 90% of modified AASHTO density | D50: m³ | E50: 100
C52: Compacted to 93% of modified AASHTO density | D52: m³ | E52: 100
A54: B34,15 | B54: 7.2 | C54: PAVEMENT LAYERS OF GRAVEL MATERIAL
B56: 7.2.1 | C56: Pavement layers constructed from gravel
C57: obtained from commercial sources or
C58: approved sources provided by the contractor,
C59: including all haul:
C61: (a) Gravel selected layer compacted to:
C63: i. 93% of modified AASHTO density for
C64: a compacted layer thickness of
C65: 150 mm, G7 quality | D65: m³ | E65: 300
C71: Carried forward
C74: Brought forward
C77: ii. 95% of modified AASHTO density for
C78: a compacted layer thickness of
C79: 150 mm, G5 quality | D79: m³ | E79: 100
C81: (b) Gravel subbase (unstabilised gravel)
C82: compacted to:
C84: i. 97% of modified AASHTO density
C85: for a compacted layer thickness of
C86: 150 mm, G5 quality | D86: m³ | E86: 300
A88: 3500 | C88: STABILISATION
C90: Chemical stabilisation extra over
C91: unstabilised compacted layers:
C93: (a) Gravel subbase, 150 mm thick | D93: m³ | E93: 300
A95: B35.02 | C95: Chemical stabilising agent:
C97: (b) Portland blast-furnace cement | D97: t | E97: 26
C98: (CEM 11/B-L32.5N)
A100: 35.04 | C100: Provision and application of water for curing | D100: kilolitre | E100: 16
A102: B35.14 | C102: Sampling of in situ material for mix design | D102: Number | E102: 3
C103: procedure
A105: . | B105: 7.3 | C105: CONCRETE PAVEMENTS
A107: 71.01 | C107: Concrete trial pavement:
B109: 7.3.1 | C109: (a) Mechanical construction, 150 mm thick | D109: m² | G109: Rate only
G110: =IF(AND(NOT(ISBLANK($E110)),NOT(ISNUMBER($F110))),"Rate only",$F110*F110) -> 0
B111: 7.3.2 | C111: (b) Manual construction, 150 mm thick | D111: m² | G111: Rate only
A113: 71.02 | B113: 7.3.3 | C113: Concrete pavement 150mm thick excluding
C114: texturing and curing (Class 30/19) | D114: m² | E114: 2,000
A116: 71.03 | B116: 7.3.4 | C116: Extra over item 71.02 for concrete pavement
C117: requiring hand placing | D117: m² | E117: 300
A119: 71.04 | B119: 7.3.5 | C119: Texturing and curing the concrete pavement:
C121: (a) Burlap-dragged and grooved texture | D121: m² | E121: 2,000
C123: (b) Curing | D123: m² | E123: 2,000
A125: 71.05 | B125: 7.3.6 | C125: Variation in the rate of application of the
C126: curing compound | D126: litre | E126: 20
A128: 71.06 | C128: Joints:
B130: 7.3.7 | C130: (a) Expansion joints complete (excluding
C131: dowels - "See Detail B on the tender drawings " | D131: m | E131: 200
B133: 7.3.8 | C133: (b) Sealed transverse contraction joints sawn in
C134: two separate operations (widths as shown
C135: on the drawings) | D135: m | E135: 200
C141: Carried forward
C144: Brought forward
B147: 7.3.9 | C147: (c) Diamond Plate Dowel
C148: "See Detail D on the tender drawings "
B150: 7.3.10 | C150: (i) Installed in new concrete | D150: No | E150: 420
B152: 7.3.11 | C152: (d) Tapered Plate Dowel bars
C153: "See Detail C on the tender drawings "
B155: 7.3.12 | C155: (ii) Installed in new concrete | D155: No | E155: 560
A157: 71.07 | C157: Drilling and testing of cores:
B159: 7.3.13 | C159: (a) 100 mm cores drilled from the pavement | D159: No | E159: 5
A161: 71.08 | C161: Steel reinforcement in concrete pavement:
B163: 7.3.14 | C163: (a) Mild-steel bars | D163: t | G163: Rate only
B165: 7.3.15 | C165: (b) High tensile steel bars | D165: t | G165: Rate only
G166: =IF(AND(NOT(ISBLANK($E166)),NOT(ISNUMBER($F166))),"Rate only",$F166*F166) -> 0
B167: 7.3.16 | C167: (c) Welded steel fabric, Ref 311 | D167: kg | E167: 6,000
B169: 7.4 | C169: TESTING MATERIALS AND WORKMANSHIP
A171: B81.02 | B171: 7.4.1 | C171: Other special tests requested by the Engineer | D171: Prov Sum | E171: 1 | F171: R50,000.00 | G171: =E171*F171 -> R50,000.00
B174: 7.4.2 | C174: Percentage mark-up on item above | D174: %
C211: TOTAL SECTION 7 CARRIED TO SUMMARY
